fUST/lending_fUST_20251116
["ID","MTS","AMOUNT","RATE_DAILY","PERIOD"]
[394089765,1763264027743,-151.0,0.0001757,2]
[394089766,1763264027773,-151.0,0.0001757,2]
[394089767,1763264027802,-153.7110367,0.0001757,2]
[394089768,1763264027830,-500.0,0.0001757,2]
[394089769,1763264027858,-381.56489233,0.0001757,2]
[394089770,1763264027887,-295.93878811,0.0001757,2]
[394089771,1763264027914,-500.0,0.0001757,2]
[394089772,1763264028534,-47.04755705,0.00017571,2]
[394089773,1763264028592,-3900.04023722,0.00017571,2]
[394089774,1763264028605,-10000.01,0.00017571,2]
[394089775,1763264028618,-10000.01,0.00017571,2]
[394089776,1763264030185,-10000.01,0.00017571,2]
[394089777,1763264030315,-10000.01,0.00017571,2]
[394089778,1763264030416,-10000.01,0.00017571,2]
[394089779,1763264030527,-10000.01,0.00017571,2]
[394089780,1763264030702,-10000.01,0.00017571,2]
[394089781,1763264030863,-4498.04261485,0.00017571,2]
[394089782,1763264030886,-1003.9247703,0.00017571,2]
[394089783,1763264030976,-151.0,0.00017571,2]
[394089784,1763264031005,-151.0,0.00017571,2]
[394089785,1763264031033,-151.0,0.00017571,2]
[394089786,1763264039309,-500.0,0.00017573,2]
[394089787,1763264039336,-513.15167356,0.00017573,2]
[394089788,1763264039362,-500.0,0.00017573,2]
[394089789,1763264039389,-500.0,0.00017573,2]
[394089790,1763264039416,-500.0,0.00017573,2]
[394089791,1763264039511,-4058.75246098,0.00017577,2]
[394089792,1763264039552,-914.9541919,0.00017577,2]
[394089793,1763264039583,-967.55088614,0.00017577,2]
[394089794,1763264039612,-261.49115765,0.0001763,2]
[394089795,1763264039639,-625.0,0.0001768,2]
[394089796,1763264039666,-151.0,0.000177,2]
[394089797,1763264039718,-3936.21549523,0.00017707,2]
[394089798,1763264039735,-967.55088614,0.00017707,2]
[394089799,1763264039749,-261.49115765,0.00017707,2]
[394089800,1763264039767,-625.0,0.00017707,2]
[394089801,1763264039782,-151.0,0.00017707,2]
[394089802,1763264039800,-382.19111231,0.00017707,2]
[394089803,1763264039810,-151.0,0.00017707,2]
[394089804,1763264039819,-155.58809709,0.00017707,2]
[394089805,1763264039828,-607.1370732,0.00017707,2]
[394089806,1763264039838,-151.0,0.00017707,2]
[394089807,1763264039848,-151.0,0.00017707,2]
[394089808,1763264039857,-151.0,0.00017707,2]
[394089809,1763264039866,-151.0,0.00017707,2]
[394089810,1763264039876,-151.0,0.00017707,2]
[394089811,1763264039885,-3593.0,0.0001779,2]
[394089812,1763264039894,-346.00962982,0.00017808,2]
[394089813,1763264042388,-153.99037021,0.00017808,2]
[394089814,1763264042416,-625.0,0.00017817,2]
[394089815,1763264042442,-151.0,0.00017844,2]
[394089816,1763264042469,-151.0,0.00017844,2]
[394089817,1763264042496,-151.0,0.00017844,2]
[394089818,1763264042527,-151.0,0.00017844,2]
[394089819,1763264042555,-151.0,0.00017844,2]
[394089820,1763264042581,-151.0,0.00017872,2]
[394089821,1763264042609,-151.0,0.00017872,2]
[394089822,1763264042635,-401.80840313,0.00017873,2]
[394089823,1763264042662,-500.0,0.00017873,2]
[394089824,1763264042688,-505.87958196,0.00017873,2]
[394089825,1763264042714,-500.0,0.00017873,2]
[394089826,1763264042741,-500.0,0.00017873,2]
[394089827,1763264042767,-454.41,0.00017873,2]
[394089828,1763264043015,-300.0,0.00017872,2]
[394089829,1763264043024,-303.8332894,0.00017954,2]
[394089830,1763264046521,-321.1667106,0.00017954,2]
[394089831,1763264046551,-195.98436179,0.00017972,2]
[394089832,1763264046578,-151.0,0.00017981,2]
[394089833,1763264046606,-151.0,0.00017981,2]
[394089834,1763264046634,-625.0,0.00018091,2]
[394089835,1763264046663,-1223.70785522,0.000181,2]
[394089836,1763264046754,-4664.29214478,0.000181,2]
[394089837,1763264047381,-197.98580188,0.00018118,2]
[394089838,1763264047409,-196.29720018,0.00018118,2]
[394089839,1763264047437,-1000.0,0.00018121,2]
[394089840,1763264047466,-1000.0,0.00018121,2]
[394089841,1763264047495,-1000.0,0.00018121,2]
[394089842,1763264047523,-1000.0,0.00018121,2]
[394089843,1763264074895,2430.638,0.00017808,2]
[394089844,1763264082517,206.17162032,0.00039164,20]
[394089845,1763264186454,-4269.0,0.00017914,2]
[394089846,1763264186483,-170.39544161,0.00017914,2]
[394089847,1763264186513,-168.0,0.00017915,2]
[394089848,1763264186543,-168.0,0.00017941,2]
[394089849,1763264186571,-180.88917944,0.00018045,2]
[394089850,1763264186708,-87.4407579,0.00018045,2]
[394089851,1763264186736,-320.70709953,0.00018045,2]
[394089852,1763264186765,-369.59450298,0.00018045,2]
[394089853,1763264186793,-577.27277915,0.00018045,2]
[394089854,1763264186820,-189.25683555,0.00018045,2]
[394089855,1763264186848,-757.02734219,0.00018045,2]
[394089856,1763264186875,-1703.31151994,0.00018045,2]
[394089857,1763264186902,-168.0,0.00018087,2]
[394089858,1763264186929,-454.78832552,0.00018093,2]
[394089859,1763264189394,-745.21167448,0.00018093,2]
[394089860,1763264189426,-4240.58665104,0.00018094,2]
[394089862,1763264192498,-28.41334896,0.00018094,2]
[394089863,1763264192528,-300.0,0.0001812,2]
[394089864,1763264192558,-300.0,0.0001812,2]
[394089865,1763264192587,-1001.33662621,0.00018121,2]
[394089867,1763264232104,300.379944,0.00017399,2]
[394089868,1763264329121,290.0,0.00017672,2]
[394089869,1763264339379,290.0,0.00017704,2]
[394089870,1763264355116,-695.71082835,0.00018051,2]
[394089871,1763264362874,2149.18632109,0.00017923,2]
[394089872,1763264371872,160.0,0.00018139,2]
[394089873,1763264510995,3750.21259419,0.00018008,2]
[394089874,1763264609413,10000.0,0.000205,10]
[394089875,1763264617233,10000.0,0.000205,10]
[394089876,1763264623014,10000.0,0.000205,10]
[394089877,1763264629710,10000.0,0.000205,10]
[394089878,1763264646316,10000.0,0.000205,10]
[394089879,1763264660051,482.99388721,0.00018045,2]
[394089880,1763264662655,353.21058858,0.00018471,5]
[394089881,1763264662757,10000.0,0.000205,10]
[394089882,1763264679644,7181.57,0.000205,10]
[394089883,1763264695661,10000.0,0.0001865,10]
[394089884,1763264711554,8504.36,0.0001865,10]
[394089885,1763264738103,261.4662898,0.0001803,2]
[394089887,1763264768391,3028.10936878,0.00018045,2]
[394089888,1763264770632,534.37224155,0.00018471,5]
[394089889,1763264773071,2135.35147723,0.00018471,5]
[394089890,1763264824100,2477.22786002,0.0001803,2]
[394089891,1763264824124,6667.06513928,0.0001803,2]
[394089892,1763264866379,2217.9555147,0.0001803,2]
[394089893,1763264923014,1114.98934602,0.00017837,2]
[394089894,1763264923041,1374.01065398,0.00017837,2]
[394089895,1763264933961,392.0,0.00018017,2]
[394089896,1763264939155,392.0,0.00017954,2]
[394089898,1763264945118,392.0,0.00018076,2]
[394089899,1763264950193,392.0,0.00017901,2]
[394089900,1763264951206,165.0,0.00018,2]
[394089901,1763264956673,392.0,0.00017923,2]
[394089902,1763264961940,392.0,0.0001768,2]
[394089937,1763265032244,-1751.0,0.00018159,2]
[394089938,1763265032257,-166.98753278,0.00018164,2]
[394089939,1763265032266,-136.7345661,0.00018169,2]
[394089940,1763265032299,-31.2654339,0.00018169,2]
[394089941,1763265032308,-290.0,0.00018174,2]
[394089942,1763265032318,-160.0,0.000182,2]
[394089943,1763265032330,-334.32267092,0.000182,2]
[394089948,1763265037897,-165.67732908,0.000182,2]
[394089949,1763265037908,-383.0,0.00018228,2]
[394089950,1763265037917,-300.0,0.00018228,2]
[394089951,1763265037926,-300.0,0.00018229,2]
[394089952,1763265037936,-300.0,0.00018229,2]
[394089953,1763265037945,-300.0,0.00018229,2]
[394089954,1763265037955,-300.0,0.00018229,2]
[394089955,1763265037964,-300.0,0.00018229,2]
[394089956,1763265037974,-300.0,0.00018229,2]
[394089957,1763265037983,-300.0,0.00018229,2]
[394089958,1763265037992,-300.0,0.00018229,2]
[394089959,1763265038002,-300.0,0.00018229,2]
[394089960,1763265038011,-300.0,0.00018229,2]
[394089961,1763265038020,-300.0,0.00018229,2]
[394089962,1763265038030,-300.0,0.00018229,2]
[394089963,1763265038039,-111.69837952,0.00018229,2]
[394089964,1763265038051,-188.30162048,0.00018229,2]
[394089965,1763265038061,-300.0,0.00018229,2]
[394089966,1763265038070,-300.0,0.00018229,2]
[394089967,1763265038080,-171.17708156,0.00018273,2]
[394089968,1763265038089,-199.87506991,0.00018298,2]
[394089969,1763265038115,-482.24165179,0.00018298,2]
[394089970,1763265038129,-3936.8832783,0.00018298,2]
[394089971,1763265038139,-500.0,0.0001832,2]
[394089972,1763265038152,-267.09542463,0.0001832,2]
[394089973,1763265038162,-407.15715168,0.0001832,2]
[394089974,1763265038171,-591.93893049,0.0001832,2]
[394089975,1763265038181,-513.08405986,0.0001832,2]
[394089976,1763265038190,-500.0,0.0001832,2]
[394089977,1763265038199,-542.50504524,0.0001832,2]
[394089978,1763265038209,-500.0,0.0001832,2]
[394089979,1763265038219,-500.0,0.0001832,2]
[394089980,1763265038229,-401.02288681,0.0001832,2]
[394089981,1763265038238,-185.66,0.0001832,2]
[394089982,1763265038248,-19630.61868783,0.00018321,2]
[394089983,1763265038702,3750.21259419,0.00017858,2]
[394090050,1763265040445,-0.00839316,0.00018273,2]
[394090081,1763265043320,-2059.3850335,0.00018273,2]
[394090082,1763265043330,-5535.66505474,0.00018321,2]
[394090095,1763265046325,-6322.78149901,0.00018321,2]
[394090096,1763265046339,-993.3609549,0.00018321,2]
[394090097,1763265046350,-1290.5641875,0.00018321,2]
[394090098,1763265046541,1000.0,0.00039161,120]
[394090099,1763265046833,1000.0,0.00039161,120]
[394090100,1763265047063,1000.0,0.00039161,120]
[394090101,1763265047353,1000.0,0.00039161,120]
[394090102,1763265047606,1000.0,0.00039161,120]
[394090103,1763265048162,1000.0,0.00039161,120]
[394090104,1763265048419,1000.0,0.00039161,120]
[394090105,1763265048662,1000.0,0.00039161,120]
[394090106,1763265048921,716.7611613,0.00039161,120]
[394090107,1763265058336,398.7,0.00018311,3]
[394090108,1763265073867,418.6575411,0.00018136,2]
[394090112,1763265139192,165.0,0.000328,120]
[394090123,1763265234938,619.342482,0.00013699,2]
[394090133,1763265371298,4269.0,0.00017856,2]
[394090134,1763265376759,196.81829815,0.00018489,5]
[394090135,1763265377326,4269.0,0.00017867,2]
[394090136,1763265487902,421.70983417,0.00039158,20]
[394090137,1763265521841,424.0099769,0.00017863,2]
[394090138,1763265521863,3326.20261729,0.00017863,2]
[394090139,1763265556142,509.75104711,0.00039158,120]
[394090140,1763265557773,733.8,0.00039158,120]
[394090141,1763265558013,733.8,0.00039158,120]
[394090142,1763265558241,733.8,0.00039158,120]
[394090143,1763265558488,733.8,0.00039158,120]
[394090144,1763265558741,733.8,0.00039158,120]
[394090145,1763265558991,733.8,0.00039158,120]
[394090146,1763265559223,733.8,0.00039158,120]
[394090147,1763265559372,500.0,0.00039158,120]
[394090148,1763265559495,733.8,0.00039158,120]
[394090149,1763265559638,500.0,0.00039158,120]
[394090150,1763265559756,733.8,0.00039158,120]
[394090151,1763265559883,500.0,0.00039158,120]
[394090152,1763265560007,733.8,0.00039158,120]
[394090153,1763265560133,500.0,0.00039158,120]
[394090154,1763265560247,733.8,0.00039158,120]
[394090155,1763265560366,500.0,0.00039158,120]
[394090156,1763265560489,733.8,0.00039158,120]
[394090157,1763265560618,500.0,0.00039158,120]
[394090158,1763265560741,733.8,0.00039158,120]
[394090159,1763265560859,500.0,0.00039158,120]
[394090160,1763265561087,733.8,0.00039158,120]
[394090161,1763265561119,458.92048827,0.00039158,120]
[394090162,1763265561256,733.8,0.00039158,120]
[394090163,1763265561491,733.8,0.00039158,120]
[394090164,1763265561719,733.8,0.00039158,120]
[394090165,1763265561927,514.69484699,0.00039158,120]
[394090166,1763265561986,733.8,0.00039158,120]
[394090167,1763265562290,733.8,0.00039158,120]
[394090168,1763265562523,733.8,0.00039158,120]
[394090169,1763265562756,733.8,0.00039158,120]
[394090170,1763265563011,733.8,0.00039158,120]
[394090171,1763265563277,733.8,0.00039158,120]
[394090172,1763265563516,734.02012335,0.00039158,120]
[394090173,1763265565432,518.57039554,0.00039158,120]
[394090174,1763265566691,243.35472294,0.00018004,2]
[394090175,1763265568414,500.0,0.00039158,120]
[394090176,1763265568923,500.0,0.00039158,120]
[394090177,1763265568965,500.0,0.00039158,120]
[394090178,1763265569157,500.0,0.00039158,120]
[394090179,1763265569197,500.0,0.00039158,120]
[394090180,1763265569395,500.0,0.00039158,120]
[394090181,1763265569437,500.0,0.00039158,120]
[394090182,1763265569623,500.0,0.00039158,120]
[394090183,1763265569670,500.0,0.00039158,120]
[394090184,1763265569902,500.0,0.00039158,120]
[394090185,1763265569930,500.0,0.00039158,120]
[394090186,1763265570151,500.0,0.00039158,120]
[394090187,1763265570192,373.1481357,0.00039158,120]
[394090188,1763265570390,500.0,0.00039158,120]
[394090189,1763265570654,500.0,0.00039158,120]
[394090190,1763265570951,500.0,0.00039158,120]
[394090191,1763265571159,500.0,0.00039158,120]
[394090192,1763265571189,500.0,0.00039158,120]
[394090193,1763265571404,500.0,0.00039158,120]
[394090194,1763265571460,500.0,0.00039158,120]
[394090195,1763265571669,500.0,0.00039158,120]
[394090196,1763265571710,239.48147889,0.00039158,120]
[394090197,1763265571901,382.16836954,0.00039158,120]
[394090198,1763265572048,1180.04,0.00039158,120]
[394090199,1763265572331,1180.04,0.00039158,120]
[394090200,1763265572361,519.0896168,0.00039158,120]
[394090201,1763265572595,1180.04,0.00039158,120]
[394090202,1763265572887,1180.04,0.00039158,120]
[394090203,1763265573202,1180.04,0.00039158,120]
[394090204,1763265573470,1180.04,0.00039158,120]
[394090205,1763265573713,1180.04,0.00039158,120]
[394090206,1763265574052,1180.04,0.00039158,120]
[394090207,1763265574299,1180.04,0.00039158,120]
[394090208,1763265574546,500.0,0.00039158,120]
[394090209,1763265574574,1180.04,0.00039158,120]
[394090210,1763265574832,500.0,0.00039158,120]
[394090211,1763265574872,1180.04,0.00039158,120]
[394090212,1763265575100,1180.04,0.00039158,120]
[394090213,1763265575132,239.37113609,0.00039158,120]
[394090214,1763265575379,1180.04,0.00039158,120]
[394090215,1763265575616,1180.04,0.00039158,120]
[394090216,1763265575875,1180.04,0.00039158,120]
[394090217,1763265576323,1180.04,0.00039158,120]
[394090218,1763265576566,1180.04,0.00039158,120]
[394090219,1763265576755,1099.97,0.00039158,60]
[394090220,1763265576816,1180.04,0.00039158,120]
[394090221,1763265577102,1099.97,0.00039158,60]
[394090222,1763265577310,1180.04,0.00039158,120]
[394090223,1763265577353,500.0,0.00039158,120]
[394090224,1763265577389,1180.04,0.00039158,120]
[394090225,1763265577464,500.0,0.00039158,120]
[394090226,1763265577492,1099.97,0.00039158,60]
[394090227,1763265577558,1180.04,0.00039158,120]
[394090228,1763265577761,607.32844927,0.00039158,120]
[394090229,1763265577797,1099.97,0.00039158,60]
[394090230,1763265577827,1180.04,0.00039158,120]
[394090231,1763265578005,1099.97,0.00039158,60]
[394090232,1763265578080,1180.04,0.00039158,120]
[394090233,1763265578112,622.63163718,0.00039158,120]
[394090234,1763265578273,1099.97,0.00039158,60]
[394090235,1763265578328,1180.16418419,0.00039158,120]
[394090236,1763265578519,1099.97,0.00039158,60]
[394090237,1763265578774,1099.97,0.00039158,60]
[394090238,1763265579036,1099.97,0.00039158,60]
[394090239,1763265579295,1099.97,0.00039158,60]
[394090240,1763265579573,1099.97,0.00039158,60]
[394090241,1763265579860,1099.97,0.00039158,60]
[394090242,1763265580101,1099.97,0.00039158,60]
[394090243,1763265580341,1099.97,0.00039158,60]
[394090244,1763265580572,1099.97,0.00039158,60]
[394090245,1763265580805,1099.97,0.00039158,60]
[394090246,1763265581069,1099.97,0.00039158,60]
[394090247,1763265581327,1099.97,0.00039158,60]
[394090248,1763265581595,1099.97,0.00039158,60]
[394090249,1763265581833,1099.97,0.00039158,60]
[394090250,1763265582065,1099.97,0.00039158,60]
[394090251,1763265582302,1099.97,0.00039158,60]
[394090252,1763265582538,1099.97,0.00039158,60]
[394090253,1763265582772,1100.02461596,0.00039158,60]
[394090254,1763265584514,644.02491107,0.00039158,120]
[394090255,1763265599560,509.49,0.00039158,120]
[394090256,1763265599831,509.49,0.00039158,120]
[394090257,1763265600056,509.49,0.00039158,120]
[394090258,1763265600296,509.49,0.00039158,120]
[394090259,1763265600551,509.49,0.00039158,120]
[394090260,1763265600797,509.49,0.00039158,120]
[394090261,1763265601023,509.49,0.00039158,120]
[394090262,1763265601318,509.49,0.00039158,120]
[394090263,1763265601571,509.49,0.00039158,120]
[394090264,1763265601824,509.49,0.00039158,120]
[394090265,1763265602079,509.49,0.00039158,120]
[394090266,1763265602343,509.49,0.00039158,120]
[394090267,1763265602580,509.49,0.00039158,120]
[394090268,1763265602698,500.0,0.00039158,120]
[394090269,1763265602851,509.49,0.00039158,120]
[394090270,1763265602967,171.02847987,0.00039158,120]
[394090271,1763265603092,509.49,0.00039158,120]
[394090273,1763265603362,509.49,0.00039158,120]
[394090275,1763265606580,2838.0,0.00039158,120]
[394090276,1763265606847,2838.0,0.00039158,120]
[394090277,1763265607190,2838.0,0.00039158,120]
[394090278,1763265607339,2838.0,0.00039158,120]
[394090279,1763265607495,509.49,0.00039158,120]
[394090280,1763265607824,509.49,0.00039158,120]
[394090281,1763265607951,2838.0,0.00039158,120]
[394090282,1763265607989,509.49,0.00039158,120]
[394090283,1763265608235,509.49,0.00039158,120]
[394090284,1763265608272,2838.0,0.00039158,120]
[394090285,1763265608488,509.49,0.00039158,120]
[394090286,1763265608525,2838.0,0.00039158,120]
[394090287,1763265608755,509.49,0.00039158,120]
[394090288,1763265608790,2838.0,0.00039158,120]
[394090289,1763265609039,2838.0,0.00039158,120]
[394090290,1763265609068,509.49,0.00039158,120]
[394090291,1763265609307,509.72000929,0.00039158,120]
[394090292,1763265609343,2838.0,0.00039158,120]
[394090293,1763265609654,2838.0,0.00039158,120]
[394090294,1763265609891,2838.0,0.00039158,120]
[394090295,1763265610156,2838.0,0.00039158,120]
[394090296,1763265610398,2838.0,0.00039158,120]
[394090297,1763265610635,2838.0,0.00039158,120]
[394090298,1763265610826,9760.44,0.00039158,120]
[394090299,1763265610886,2838.0,0.00039158,120]
[394090300,1763265611140,2838.0,0.00039158,120]
[394090301,1763265611377,2838.0,0.00039158,120]
[394090302,1763265611635,2838.0,0.00039158,120]
[394090303,1763265611900,2838.0,0.00039158,120]
[394090304,1763265612150,2838.0,0.00039158,120]
[394090305,1763265612409,2838.0,0.00039158,120]
[394090306,1763265612657,2838.0,0.00039158,120]
[394090307,1763265612881,500.0,0.00039158,120]
[394090308,1763265612915,2838.0859039,0.00039158,120]
[394090309,1763265613119,262.51135558,0.00039158,120]
[394090310,1763265616357,500.0,0.00039158,120]
[394090311,1763265616588,620.45985556,0.00039158,120]
[394090312,1763265618498,795.41,0.00039158,120]
[394090313,1763265618753,795.41,0.00039158,120]
[394090314,1763265622740,500.0,0.00039158,120]
[394090315,1763265622827,603.45,0.00039158,120]
[394090316,1763265622970,500.0,0.00039158,120]
[394090317,1763265623104,603.45,0.00039158,120]
[394090318,1763265623306,500.0,0.00039158,120]
[394090319,1763265623369,603.45,0.00039158,120]
[394090320,1763265623455,500.0,0.00039158,120]
[394090321,1763265623611,603.45,0.00039158,120]
[394090322,1763265623701,500.0,0.00039158,120]
[394090323,1763265623861,603.45,0.00039158,120]
[394090324,1763265623980,500.0,0.00039158,120]
[394090325,1763265624103,603.45,0.00039158,120]
[394090326,1763265624256,500.0,0.00039158,120]
[394090327,1763265624341,603.45,0.00039158,120]
[394090328,1763265624516,231.61163483,0.00039158,120]
[394090329,1763265624583,603.45,0.00039158,120]
[394090330,1763265624824,603.45,0.00039158,120]
[394090331,1763265625068,603.45,0.00039158,120]
[394090332,1763265625316,603.45,0.00039158,120]
[394090333,1763265625583,603.45,0.00039158,120]
[394090334,1763265625823,603.45,0.00039158,120]
[394090335,1763265626066,603.45,0.00039158,120]
[394090336,1763265626321,603.45,0.00039158,120]
[394090337,1763265626567,603.45,0.00039158,120]
[394090338,1763265626802,603.45,0.00039158,120]
[394090339,1763265627044,603.45,0.00039158,120]
[394090340,1763265627379,603.45,0.00039158,120]
[394090341,1763265627593,603.45,0.00039158,120]
[394090342,1763265627851,603.45,0.00039158,120]
[394090343,1763265627899,1348.1,0.00039158,120]
[394090344,1763265627950,500.0,0.00039158,120]
[394090345,1763265628080,603.45,0.00039158,120]
[394090346,1763265628126,1348.1,0.00039158,120]
[394090347,1763265628483,500.0,0.00039158,120]
[394090348,1763265628517,603.45,0.00039158,120]
[394090349,1763265628547,1348.1,0.00039158,120]
[394090350,1763265628578,500.0,0.00039158,120]
[394090351,1763265628611,1348.1,0.00039158,120]
[394090352,1763265628708,500.0,0.00039158,120]
[394090353,1763265628738,302.96008943,0.00039158,120]
[394090354,1763265628849,1348.1,0.00039158,120]
[394090355,1763265628981,500.0,0.00039158,120]
[394090356,1763265629113,1348.1,0.00039158,120]
[394090357,1763265629218,500.0,0.00039158,120]
[394090358,1763265629558,500.0,0.00039158,120]
[394090359,1763265629736,1348.1,0.00039158,120]
[394090360,1763265629795,500.0,0.00039158,120]
[394090361,1763265630002,1348.1,0.00039158,120]
[394090362,1763265630035,500.0,0.00039158,120]
[394090363,1763265630268,1348.1,0.00039158,120]
[394090364,1763265630299,500.0,0.00039158,120]
[394090365,1763265630509,1348.1,0.00039158,120]
[394090366,1763265630539,500.0,0.00039158,120]
[394090367,1763265630749,1348.1,0.00039158,120]
[394090368,1763265630845,500.0,0.00039158,120]
[394090369,1763265630996,1348.1,0.00039158,120]
[394090370,1763265631089,500.0,0.00039158,120]
[394090371,1763265631330,1348.1,0.00039158,120]
[394090372,1763265631589,500.0,0.00039158,120]
[394090373,1763265631631,500.0,0.00039158,120]
[394090374,1763265631661,1348.1,0.00039158,120]
[394090375,1763265631877,500.0,0.00039158,120]
[394090376,1763265631908,1348.1,0.00039158,120]
[394090377,1763265632119,500.0,0.00039158,120]
[394090378,1763265632148,1348.1,0.00039158,120]
[394090379,1763265632365,500.0,0.00039158,120]
[394090380,1763265632396,1348.1,0.00039158,120]
[394090381,1763265632607,500.0,0.00039158,120]
[394090382,1763265632637,1348.1,0.00039158,120]
[394090383,1763265632853,500.0,0.00039158,120]
[394090384,1763265632884,1348.1,0.00039158,120]
[394090385,1763265633123,500.0,0.00039158,120]
[394090386,1763265633155,1348.1,0.00039158,120]
[394090387,1763265633376,257.5,0.00039158,120]
[394090388,1763265633461,1348.1,0.00039158,120]
[394090389,1763265633694,1348.1,0.00039158,120]
[394090390,1763265634034,1348.1,0.00039158,120]
[394090391,1763265634662,1348.10257046,0.00039158,120]
[394090392,1763265635284,1214.24,0.00039158,120]
[394090393,1763265635503,590.35,0.00039158,20]
[394090394,1763265635582,1214.24,0.00039158,120]
[394090395,1763265635830,1214.24,0.00039158,120]
[394090396,1763265636082,500.0,0.00039158,120]
[394090397,1763265636115,1214.24,0.00039158,120]
[394090398,1763265636351,1214.24,0.00039158,120]
[394090399,1763265636412,159.69633333,0.00039158,120]
[394090400,1763265636626,1214.24,0.00039158,120]
[394090401,1763265636866,1214.24,0.00039158,120]
[394090402,1763265637094,1214.24,0.00039158,120]
[394090403,1763265637353,1214.24,0.00039158,120]
[394090404,1763265637599,1214.24,0.00039158,120]
[394090405,1763265638106,1214.24,0.00039158,120]
[394090406,1763265638330,1214.24,0.00039158,120]
[394090407,1763265638649,1214.24,0.00039158,120]
[394090408,1763265638678,2337.04,0.00039158,120]
[394090409,1763265638897,2337.04,0.00039158,120]
[394090410,1763265639067,1214.24,0.00039158,120]
[394090411,1763265639159,2337.04,0.00039158,120]
[394090412,1763265639346,1214.24,0.00039158,120]
[394090413,1763265639399,2337.04,0.00039158,120]
[394090414,1763265639594,1214.24,0.00039158,120]
[394090415,1763265639632,2337.04,0.00039158,120]
[394090416,1763265639823,1214.24,0.00039158,120]
[394090417,1763265639880,2337.04,0.00039158,120]
[394090418,1763265640065,1214.24,0.00039158,120]
[394090419,1763265640127,2337.04,0.00039158,120]
[394090420,1763265640463,1214.24,0.00039158,120]
[394090421,1763265640495,2337.04,0.00039158,120]
[394090422,1763265640587,1214.24,0.00039158,120]
[394090423,1763265640638,2337.04,0.00039158,120]
[394090424,1763265640830,1214.24,0.00039158,120]
[394090425,1763265640872,2337.04,0.00039158,120]
[394090426,1763265641069,1214.24,0.00039158,120]
[394090427,1763265641119,2337.04,0.00039158,120]
[394090428,1763265641153,500.0,0.00039158,120]
[394090429,1763265641313,1214.24,0.00039158,120]
[394090430,1763265641384,2337.04,0.00039158,120]
[394090431,1763265641413,500.0,0.00039158,120]
[394090432,1763265641549,1214.3697608,0.00039158,120]
[394090433,1763265641641,2337.04,0.00039158,120]
[394090434,1763265641672,500.0,0.00039158,120]
[394090435,1763265641921,406.25172973,0.00039158,120]
[394090436,1763265641958,2337.04,0.00039158,120]
[394090437,1763265642196,2337.04,0.00039158,120]
[394090438,1763265642476,2337.04,0.00039158,120]